bitfinex/quotes_ETHUSD_20250916
["timestamp","ask_amount","ask_price","bid_price","bid_amount"]
[1758024433155,0.20711165,4511.7,4511.6,22.74632306]
[1758024433556,0.52291165,4511.7,4511.6,19.04532306]
[1758024433762,1.48041165,4511.7,4511.6,20.53070855]
[1758024433977,0.20711165,4511.7,4511.6,20.53070855]
[1758024434144,0.20711165,4511.7,4511.6,6.03070855]
[1758024435248,0.68571639,4511.7,4511.6,6.03070855]
[1758024435452,1.00151639,4511.7,4511.6,6.03070855]
[1758024435654,1.95901639,4511.7,4511.6,6.03070855]
[1758024436261,1.00151639,4511.7,4511.6,6.03070855]
[1758024436458,0.68571639,4511.7,4511.6,7.02583862]
[1758024436938,0.68673229,4511.7,4511.6,7.15853862]
[1758024437134,0.20812755,4511.7,4511.6,7.15853862]
[1758024437387,0.20812755,4511.7,4511.6,7.15953862]
[1758024438473,0.20812755,4511.7,4511.6,7.02683862]
[1758024438656,0.52392755,4511.7,4511.6,3.32383862]
[1758024438856,1.9600735,4511.7,4511.6,3.32383862]
[1758024439247,1.48142755,4511.7,4511.6,3.32383862]
[1758024439445,1.48062755,4511.7,4511.6,3.32383862]
[1758024440755,0.52312755,4511.7,4511.6,3.32383862]
[1758024441757,1.48062755,4511.7,4511.6,1.10733007]
[1758024441957,1.48062755,4511.7,4511.6,0.1122]
[1758024442194,6.59462908,4511.7,4511.1,0.001]
[1758024442488,4.3029011,4511.4,4511.1,0.001]
[1758024442658,0.92150043,4511.3,4511.1,0.001]
[1758024442999,1.12690043,4511.2,4511.1,0.001]
[1758024443146,3.34360551,4511.2,4511.1,0.001]
[1758024443350,4.72447605,4511.2,4511.1,0.001]
[1758024445349,2.50777097,4511.2,4511.1,0.001]
[1758024445581,2.08440043,4511.2,4511.1,0.001]
[1758024446582,4.30110551,4511.2,4511.1,0.001]
[1758024447401,3.82241956,4511.2,4511.1,0.001]
[1758024448117,7.61441956,4511.2,4511.1,0.001]
[1758024448318,8.09310551,4511.2,4511.1,0.001]
[1758024448519,9.62474137,4511.2,4511.1,0.001]
[1758024448879,13.36674137,4511.2,4511.1,0.001]
[1758024450116,5.08440043,4511.2,4511.1,0.001]
[1758024450305,4.60571448,4511.2,4511.1,0.001]
[1758024451312,4.2733,4511.2,4511.1,0.001]
[1758024451612,0.20708753,4511.2,4511.1,0.001]
[1758024451817,0.1104,4511.3,4511.1,0.001]
[1758024452017,0.292,4511.2,4511.1,0.001]
[1758024452611,0.292,4511.2,4511.1,0.0018]
[1758024452783,0.1204,4511.9,4511.1,0.2478]
[1758024453138,0.4712,4511.8,4511.3,2.21663579]
[1758024453341,0.9385,4511.7,4511.3,2.21663579]
[1758024453838,0.32744181,4511.9,4511.6,0.1356]
[1758024454396,0.1204,4511.9,4511.5,2.21653782]
[1758024454602,1.0589,4511.9,4511.5,2.21653782]
[1758024454827,0.9385,4511.8,4511.1,2.32894332]
[1758024455030,0.292,4511.6,4511.2,2.21669176]
[1758024455244,0.1204,4511.9,4511.5,0.1356]
[1758024455536,0.1204,4511.9,4511.5,2.35215768]
[1758024455926,0.002,4511.8,4511.6,0.02216508]
[1758024456236,0.002,4511.8,4511.7,2.35205942]
[1758024460305,0.294,4511.8,4511.6,2.32690538]
[1758024460529,0.294,4511.8,4511.7,2.82304996]
[1758024460530,0.002,4511.8,4511.7,2.82304996]
[1758024460754,0.002,4511.8,4511.7,0.60659054]
[1758024461401,0.002,4511.8,4511.7,2.82304996]
[1758024461983,0.294,4511.8,4511.7,2.82304996]
[1758024462148,0.002,4511.8,4511.7,2.95864996]
[1758024462728,0.002,4511.8,4511.7,2.95944996]
[1758024462941,0.002,4511.8,4511.7,2.82384996]
[1758024463947,0.002,4511.8,4511.7,0.60739054]
[1758024464458,3.4489103,4511.8,4511.7,0.0008]
[1758024464650,2.21660681,4511.4,4511.3,0.001]
[1758024464845,2.42380575,4511.4,4511.3,0.001]
[1758024465169,3.65430575,4511.4,4511.3,0.001]
[1758024465570,4.6153902,4511.4,4511.3,0.001]
[1758024465971,3.65430575,4511.4,4511.3,0.001]
[1758024466639,3.44710681,4511.4,4511.3,0.001]
[1758024466937,1.2305,4511.4,4511.3,0.001]
[1758024469646,3.739,4511.7,4511.3,0.001]
[1758024469853,0.20731224,4511.6,4511.3,0.001]
[1758024470581,0.0012,4511.8,4511.5,0.1369]
[1758024470751,0.0012,4511.8,4511.6,2.23866733]
[1758024471075,0.0012,4511.8,4511.6,0.02216508]
[1758024471281,0.0012,4511.8,4511.5,2.21654565]
[1758024471575,0.0012,4511.8,4511.3,2.56672654]
[1758024471915,0.0012,4511.8,4511.3,2.44174062]
[1758024472076,0.0012,4511.8,4511.7,0.1369]
[1758024472684,0.0012,4511.8,4511.4,0.125]
[1758024472844,0.0012,4511.8,4511.4,2.34237241]
[1758024473178,0.0012,4511.8,4511.4,0.0008]
[1758024473977,0.4724,4511.8,4511.4,0.0008]
[1758024474278,0.9397,4511.8,4511.4,0.0008]
[1758024474443,0.9126,4511.8,4511.6,0.1104]
[1758024474642,0.2852,4511.7,4511.6,0.1104]
[1758024474858,0.7473,4511.7,4511.6,0.1104]
[1758024475589,0.0012,4511.8,4511.6,0.2473]
[1758024477100,0.0012,4511.8,4511.6,2.46379493]
[1758024477300,0.0012,4511.8,4511.6,0.2473]
[1758024477595,0.0012,4511.8,4511.6,0.1104]
[1758024479301,0.4964,4511.8,4511.6,0.1104]
[1758024480777,0.0012,4511.8,4511.6,0.1104]
[1758024480979,0.0012,4511.8,4511.6,0.2233223]
[1758024481592,0.0012,4511.8,4511.6,2.43982506]
[1758024481794,0.0012,4511.8,4511.7,0.1369]
[1758024482294,0.0012,4511.8,4511.7,2.35335942]
[1758024482508,0.0012,4511.8,4511.7,2.47835942]
[1758024482671,0.0012,4511.8,4511.7,3.44018481]
[1758024483176,0.0012,4511.8,4511.7,3.44098481]
[1758024484583,0.0012,4511.8,4511.7,17.91882022]
[1758024487513,0.0012,4511.8,4511.7,17.83332022]
[1758024488310,0.0012,4511.8,4511.7,17.91882022]
[1758024489811,0.0004,4511.8,4511.7,17.91882022]
[1758024492506,0.0004,4511.8,4511.7,18.02922022]
[1758024493239,0.2893,4511.8,4511.7,19.0839608]
[1758024493401,1.2144,4511.8,4511.7,6.80042022]
[1758024494024,0.0004,4511.8,4511.7,6.80042022]
[1758024494230,0.0004,4511.8,4511.7,6.93732022]
[1758024496847,0.0004,4511.8,4511.7,6.80042022]
[1758024497046,0.7845,4511.8,4511.7,6.80042022]
[1758024497631,0.2893,4511.8,4511.7,21.30042022]
[1758024497812,0.0004,4511.8,4511.7,21.30042022]
[1758024499509,0.0004,4511.8,4511.7,21.43732022]
[1758024500124,0.0004,4511.8,4511.7,21.30042022]
[1758024500347,0.0004,4511.8,4511.7,21.43732022]
[1758024500545,0.0004,4511.8,4511.7,21.30042022]
[1758024503347,0.0004,4511.8,4511.7,21.41082022]
[1758024507859,0.0004,4511.8,4511.7,21.54772022]
[1758024509662,0.2865,4511.8,4511.7,21.41082022]
[1758024509848,0.747,4511.8,4511.7,21.41082022]
[1758024510035,1.2298,4511.8,4511.7,21.41082022]
[1758024510724,3.4462103,4511.8,4511.6,0.001]
[1758024510930,2.21655768,4511.5,4510.8,0.001]
[1758024511125,3.0,4511.6,4510.3,0.001]
[1758024511126,4.29235636,4510.7,4510.3,0.001]
[1758024511369,0.2861,4510.5,4510.3,0.001]
[1758024511868,1.2294,4510.5,4510.3,0.001]
[1758024512169,3.6539747,4510.5,4510.3,0.001]
[1758024512534,4.24107192,4510.5,4510.3,0.001]
[1758024512930,13.13496692,4510.5,4510.3,0.001]
[1758024513130,8.84261056,4510.5,4510.3,0.001]
[1758024513738,8.84231107,4510.5,4510.3,0.001]
[1758024514164,13.13466743,4510.5,4510.3,0.001]
[1758024514359,12.6569016,4510.5,4510.3,0.001]
[1758024514867,8.36454524,4510.5,4510.3,0.001]
[1758024515068,8.36374524,4510.5,4510.3,0.001]
[1758024515234,8.03227192,4510.5,4510.3,0.001]
[1758024519062,11.77327192,4510.5,4510.3,0.001]
[1758024519686,11.86215636,4510.5,4510.3,0.001]
[1758024520809,8.12115636,4510.5,4510.3,0.001]
[1758024520965,11.86115636,4510.5,4510.4,0.0018]
[1758024521366,11.65363076,4510.5,4510.4,0.0018]
[1758024522199,11.85971017,4510.5,4510.4,0.0018]
[1758024524469,8.11971017,4510.5,4510.4,0.0018]
[1758024524669,11.85771017,4510.5,4510.4,0.0018]
[1758024524869,8.11971017,4510.5,4510.4,0.0018]
[1758024525071,11.85671017,4510.5,4510.4,0.0018]
[1758024526371,11.85660262,4510.5,4510.4,0.0018]
[1758024526985,8.11960262,4510.5,4510.4,0.0018]
[1758024527180,11.85560262,4510.5,4510.4,0.0018]
[1758024527705,7.32760262,4510.5,4510.4,0.0018]
[1758024527918,11.06360262,4510.5,4510.4,0.0018]
[1758024528275,10.97471818,4510.5,4510.4,0.0018]
[1758024531026,10.9738173,4510.5,4510.4,0.0018]
[1758024535003,7.2388173,4510.5,4510.4,0.0018]
[1758024535217,10.9718173,4510.5,4510.4,0.0018]
[1758024535814,15.26996966,4510.5,4510.4,0.0018]
[1758024536212,15.47661888,4510.5,4510.4,0.0018]
[1758024536460,15.95274327,4510.5,4510.4,0.0018]
[1758024537219,16.07683675,4510.5,4510.4,0.0018]
[1758024538849,12.34383675,4510.5,4510.4,0.0018]
[1758024539051,10.52813953,4510.5,4510.4,0.3039]
[1758024539236,14.25813953,4510.5,4510.4,0.3039]
[1758024539441,14.25813953,4510.5,4510.4,0.0018]
[1758024539853,14.25913953,4510.5,4510.4,0.0018]
[1758024540056,14.55543953,4510.5,4510.4,0.0018]
[1758024540362,16.2625769,4510.5,4510.4,0.0018]
[1758024540530,15.3537769,4510.5,4510.4,0.0018]
[1758024542539,14.55463953,4510.5,4510.4,0.0018]
[1758024542737,14.55798041,4510.5,4510.4,0.0018]
[1758024543336,14.55998041,4510.5,4510.4,0.0018]
[1758024543735,14.26368041,4510.5,4510.4,0.0018]
[1758024544722,14.55998041,4510.5,4510.4,0.0018]
[1758024544923,15.46878041,4510.5,4510.4,0.0018]
[1758024546079,21.82584152,4510.5,4510.4,0.0018]
[1758024546372,22.61784152,4510.5,4510.4,0.0018]
[1758024546663,6.11869826,4510.4,4510.3,0.001]
[1758024546858,7.13497721,4510.4,4510.3,0.001]
[1758024547081,8.34007721,4510.4,4510.3,0.001]
[1758024547248,10.42121565,4510.4,4510.3,0.001]
[1758024547562,6.0092949,4510.0,4509.9,0.001]
[1758024547763,15.05172621,4510.0,4509.9,0.001]
[1758024548061,16.34572468,4510.0,4509.9,0.001]
[1758024548425,16.34672468,4510.0,4509.9,0.001]
[1758024548628,16.22431045,4510.0,4509.9,0.001]
[1758024548970,17.42188639,4510.0,4509.9,0.001]
[1758024549128,12.92331528,4510.0,4509.9,0.001]
[1758024549329,16.65231528,4510.0,4509.9,0.001]
[1758024549525,17.13301528,4510.0,4509.9,0.001]
[1758024550359,17.13294518,4510.0,4509.9,0.001]
[1758024550557,12.49514518,4510.0,4509.9,0.001]
[1758024550761,16.22414518,4510.0,4509.9,0.001]
[1758024551025,17.13294518,4510.0,4509.9,0.001]
[1758024551640,13.40394518,4510.0,4509.9,0.001]
[1758024551933,17.13094518,4510.0,4509.9,0.001]
[1758024552368,7.10869282,4510.0,4509.9,0.001]
[1758024552568,11.32953023,4510.0,4509.9,0.001]
[1758024552743,15.05653023,4510.0,4509.9,0.001]
[1758024552942,11.32953023,4510.0,4509.9,0.001]
[1758024553181,15.05653023,4510.0,4509.9,0.001]
[1758024553388,15.05653023,4510.0,4509.9,0.3031]
[1758024553389,10.53156094,4510.0,4509.9,0.3031]
[1758024553593,7.74311368,4510.0,4509.9,0.7895]
[1758024553752,14.8569575,4510.0,4509.9,0.7895]
[1758024554145,14.73286402,4510.0,4509.9,0.7895]
[1758024554382,14.85753101,4510.0,4509.9,0.7895]
[1758024554669,12.64023611,4510.0,4509.9,0.7895]
[1758024554876,14.25913445,4510.0,4509.9,0.7895]
[1758024555248,14.85753101,4510.0,4509.9,0.3031]
[1758024555448,12.04183955,4510.0,4509.9,0.3031]
[1758024555675,12.04183955,4510.0,4509.9,0.7895]
[1758024556183,14.25913445,4510.0,4509.9,0.7895]
[1758024556677,14.25913445,4510.0,4509.9,0.3031]
[1758024556985,14.25913445,4510.0,4509.9,0.3039]
[1758024557483,10.53213445,4510.0,4509.9,0.3039]
[1758024557655,14.25913445,4510.0,4509.9,0.3039]
[1758024558782,12.04183955,4510.0,4509.9,0.3039]
[1758024559277,12.04183955,4510.0,4509.9,0.7903]
[1758024559278,9.04183955,4510.0,4509.9,0.7903]
[1758024559483,11.25913445,4510.0,4509.9,0.7903]
[1758024559843,7.53213445,4510.0,4509.9,0.7903]
[1758024560049,9.03883955,4510.0,4509.9,0.7903]
[1758024560644,5.31483955,4510.0,4509.9,0.7903]
[1758024560861,8.56271516,4510.0,4509.9,0.7903]
[1758024561062,9.03883955,4510.0,4509.9,0.7903]
[1758024561257,4.74068719,4510.0,4509.9,0.7903]
[1758024561462,4.2645628,4510.0,4509.9,0.7903]
[1758024561673,4.3749628,4510.0,4509.9,0.7903]
[1758024563248,4.3749628,4510.0,4509.9,0.3039]
[1758024563453,4.85108719,4510.0,4509.9,0.3039]
[1758024564186,1.12708719,4510.0,4509.9,0.3039]
[1758024564392,4.24929581,4510.0,4509.9,0.7903]
[1758024564688,4.3739628,4510.0,4509.9,0.3039]
[1758024564874,4.85008719,4510.0,4509.9,0.3039]
[1758024565385,4.3731628,4510.0,4509.9,0.0018]
[1758024565585,7.8079577,4510.0,4509.9,0.0018]
[1758024565759,12.58223445,4510.0,4509.9,0.0018]
[1758024566505,9.90973955,4510.0,4509.9,0.0018]
[1758024566909,9.43853955,4510.0,4509.9,0.0018]
[1758024567704,5.14038719,4510.0,4509.9,0.0018]
[1758024568015,4.3731628,4510.0,4509.9,0.0018]
[1758024568207,4.84928719,4510.0,4509.9,0.0018]
[1758024569014,5.14038719,4510.0,4509.9,0.0018]
[1758024569518,4.84928719,4510.0,4509.9,0.0018]
[1758024570018,4.3731628,4510.0,4509.9,0.0018]
[1758024570189,4.84928719,4510.0,4509.9,0.0018]
[1758024570883,0.79434106,4510.0,4509.9,0.3119]
[1758024571085,4.03821667,4510.0,4509.9,0.3119]
[1758024571407,4.16291424,4510.0,4509.9,0.8116]
[1758024571604,0.44291424,4510.0,4509.9,0.8116]
[1758024571815,4.3283214,4510.0,4509.9,0.0018]
[1758024571984,4.45301424,4510.0,4509.9,0.0018]
[1758024572286,4.16191424,4510.0,4509.9,0.0018]
[1758024573815,4.16191424,4510.0,4509.9,0.3119]
[1758024574018,4.16191424,4510.0,4509.9,0.8116]
[1758024574421,4.16091424,4510.0,4509.9,0.8116]
[1758024575028,0.44291424,4510.0,4509.9,0.8116]
[1758024575196,4.0362214,4510.0,4509.9,0.8116]
[1758024575392,4.16091424,4510.0,4509.9,0.8116]
[1758024576132,4.16093024,4510.0,4509.9,0.8116]
[1758024576612,4.16093024,4510.0,4509.9,0.3119]
[1758024577332,4.36876332,4510.0,4509.9,0.3119]
[1758024578423,0.65076332,4510.0,4509.9,0.3119]
[1758024578624,0.2078214,4510.0,4509.9,3.64485085]
[1758024579426,0.2078214,4510.0,4509.9,1.42750679]
[1758024579616,0.2078214,4510.0,4509.9,3.64485085]
[1758024579815,0.20785276,4510.1,4509.9,3.64485085]
[1758024580019,0.1104,4510.2,4510.0,3.05206784]
[1758024580313,0.20784132,4510.1,4510.0,3.05286784]
[1758024580520,0.20784132,4510.1,4510.0,3.36296784]
[1758024580721,0.20783745,4510.1,4510.0,1.14567294]
[1758024581713,0.20783745,4510.1,4510.0,3.05006784]
[1758024582114,0.20783745,4510.1,4510.0,0.83277294]
[1758024582426,0.41569237,4510.1,4510.0,0.83277294]
[1758024582854,0.20783745,4510.1,4510.0,0.83277294]
[1758024585155,0.20783745,4510.1,4510.0,0.3109]
[1758024586865,0.20783745,4510.1,4510.0,3.0278949]
[1758024587033,0.20783745,4510.1,4510.0,1.36883973]
[1758024587222,0.3182116,4510.2,4510.0,1.36883973]
[1758024587567,0.3182116,4510.2,4510.1,0.52187245]
[1758024587753,0.52601531,4510.2,4510.1,0.52187245]
[1758024587952,0.52601531,4510.2,4510.1,0.83197245]
[1758024588529,0.20780371,4510.2,4510.1,3.41024874]
[1758024588728,0.002,4510.3,4510.2,2.21719657]
[1758024588965,0.002,4510.3,4510.2,3.02979657]
[1758024589165,0.002,4510.3,4510.2,3.33989657]
[1758024589430,0.002,4510.3,4510.2,3.94293386]
[1758024590061,0.002,4510.3,4510.2,3.96510582]
[1758024590570,0.0012,4510.3,4510.2,3.96590582]
[1758024590970,0.0012,4510.3,4510.2,3.65300582]
[1758024591176,0.0012,4510.3,4510.2,3.96590582]
[1758024592205,0.0004,4510.3,4510.2,3.96590582]
[1758024593772,0.0004,4510.3,4510.2,3.94373386]
[1758024594538,0.0004,4510.3,4510.2,3.63083386]
[1758024594939,0.0004,4510.3,4510.2,3.13113386]
[1758024595643,0.0004,4510.3,4510.2,3.59703386]
[1758024596461,0.0004,4510.3,4510.2,6.53103386]
[1758024597097,0.0004,4510.3,4510.2,6.83453386]
[1758024597299,0.0004,4510.3,4510.2,7.30043386]
[1758024599740,0.0004,4510.3,4510.2,6.83453386]
[1758024599919,0.0004,4510.3,4510.2,6.53103386]
[1758024600306,0.3102,4510.3,4510.2,4.31383729]
[1758024600489,1.2267,4510.3,4510.2,3.7108]
[1758024601096,1.2267,4510.3,4510.2,5.92799657]
[1758024602377,0.3102,4510.3,4510.2,5.92799657]
[1758024603188,0.0004,4510.3,4510.2,5.92799657]
[1758024603393,0.0004,4510.3,4510.2,7.12355794]
[1758024603619,0.0004,4510.3,4510.2,7.60145794]
[1758024605401,0.0004,4510.3,4510.2,7.12355794]
[1758024606234,0.0004,4510.3,4510.2,7.60145794]
[1758024606432,0.0004,4510.3,4510.2,7.91435794]
[1758024609140,0.0004,4510.3,4510.2,6.83765794]
[1758024609513,0.0004,4510.3,4510.2,7.60145794]
[1758024610741,0.3102,4510.3,4510.2,21.33765794]
[1758024610895,1.2267,4510.3,4510.2,21.33765794]
[1758024611451,1.2267,4510.3,4510.2,6.83765794]
[1758024611676,2.52734741,4510.3,4510.2,0.0008]
[1758024611843,9.01687669,4510.3,4510.2,0.0008]
[1758024612006,9.14152978,4510.3,4510.2,0.0008]
[1758024612348,9.62022464,4510.3,4510.2,0.0008]
[1758024612539,10.80415483,4510.3,4510.2,0.0008]
[1758024613452,10.89303158,4510.3,4510.2,0.0008]
[1758024614329,10.89223158,4510.3,4510.2,0.0008]
[1758024615764,10.89143158,4510.3,4510.2,0.0008]
[1758024615944,10.89343158,4510.3,4510.2,0.0008]
[1758024617932,14.60943158,4510.3,4510.2,0.0008]
[1758024620643,14.60876982,4510.3,4510.2,0.0008]
[1758024623057,9.45122322,4510.3,4510.2,0.0008]
[1758024624667,14.60876982,4510.3,4510.2,0.0008]
[1758024625026,18.40076982,4510.3,4510.2,0.0008]
[1758024625921,19.19873911,4510.3,4510.2,0.0008]
[1758024626152,18.40076982,4510.3,4510.2,0.0008]
[1758024626547,19.19873911,4510.3,4510.2,0.0008]
[1758024629294,18.40076982,4510.3,4510.2,0.0008]
[1758024630605,9.52722322,4510.3,4510.2,0.0008]
[1758024630808,10.12395121,4510.3,4510.2,0.0008]
[1758024631110,10.34679303,4510.3,4510.2,0.0008]
[1758024631300,11.13879303,4510.3,4510.2,0.0008]
[1758024631595,11.13823602,4510.3,4510.2,0.0008]
[1758024631797,15.43611047,4510.3,4510.2,0.0008]
[1758024632356,15.88801047,4510.3,4510.2,0.0008]
[1758024632596,16.36191047,4510.3,4510.2,0.0008]
[1758024632901,18.45018204,4510.3,4510.2,0.0008]
[1758024633459,13.81238204,4510.3,4510.2,0.0008]
[1758024633657,17.52438204,4510.3,4510.2,0.0008]
[1758024634053,10.62351047,4510.3,4510.2,0.0008]
[1758024634253,11.33451047,4510.3,4510.2,0.0008]
[1758024634584,14.33451047,4510.3,4510.2,0.0008]
[1758024635865,14.63591047,4510.3,4510.2,0.0008]
[1758024636066,15.56171047,4510.3,4510.2,0.0008]
[1758024636801,15.56124992,4510.3,4510.2,0.0008]
[1758024638711,15.56024992,4510.3,4510.2,0.0008]
[1758024639212,14.63444992,4510.3,4510.2,0.0008]
[1758024639794,10.92444992,4510.3,4510.2,0.0008]
[1758024640002,15.56024992,4510.3,4510.2,0.0008]
[1758024640402,17.56835543,4510.3,4510.2,0.0008]
[1758024640555,18.16508342,4510.3,4510.2,0.0008]
[1758024641085,13.86640897,4510.3,4510.2,0.0008]
[1758024641885,14.06168098,4510.3,4510.2,0.0008]
[1758024652180,14.05888098,4510.3,4510.2,0.0008]
[1758024653638,10.35088098,4510.3,4510.2,0.0008]
[1758024653856,14.05788098,4510.3,4510.2,0.0008]
[1758024656324,14.05688098,4510.3,4510.2,0.0008]
[1758024660459,15.25455209,4510.3,4510.2,0.0008]
[1758024660892,5.32759657,4510.2,4510.1,0.001]
[1758024661065,14.05699968,4510.2,4510.1,0.001]
[1758024661265,15.29389968,4510.2,4510.1,0.001]
[1758024662062,15.38279716,4510.2,4510.1,0.001]
[1758024664601,15.38357448,4510.2,4510.1,0.001]
[1758024666277,14.18521164,4510.2,4510.1,0.001]
[1758024668525,12.65531815,4510.2,4510.1,0.001]
[1758024668683,16.6519926,4510.2,4510.1,0.001]
[1758024670998,16.9531926,4510.2,4510.1,0.001]
[1758024671189,17.8888926,4510.2,4510.1,0.0018]
[1758024671609,2.2172949,4510.0,4509.9,0.001]
[1758024671804,9.93890449,4510.0,4509.9,0.001]
[1758024672028,11.17580449,4510.0,4509.9,0.001]
[1758024672390,11.2647081,4510.0,4509.9,0.001]
[1758024672587,11.05682389,4510.0,4509.9,0.001]
[1758024672934,11.96301585,4510.0,4509.9,0.001]
[1758024675803,3.0,4509.6,4509.0,0.001]
[1758024676007,15.94210891,4509.6,4509.0,0.001]
[1758024676229,17.17900891,4509.6,4509.0,0.001]
[1758024676534,19.39662342,4509.6,4509.0,0.001]
[1758024676691,15.09874897,4509.6,4509.0,0.001]
[1758024677092,2.21754074,4509.5,4509.0,0.001]
[1758024677324,13.81348636,4509.1,4509.0,0.001]
[1758024677524,22.04473979,4509.1,4509.0,0.001]
[1758024677724,22.98043979,4509.1,4509.0,0.001]
[1758024678551,22.98043979,4509.1,4508.1,0.011]
[1758024678552,2.2181802,4508.2,4508.1,0.011]
[1758024678697,9.24388368,4508.2,4508.1,0.011]
[1758024679045,12.24388368,4508.2,4508.1,0.7785]
[1758024679190,11.73485614,4508.2,4508.1,0.7785]
[1758024680835,11.73485614,4508.2,4508.1,1.0926]
[1758024681291,8.03085614,4508.2,4508.1,0.7793]
[1758024681492,11.64592309,4508.2,4508.1,1.0934]
[1758024681736,5.72374289,4508.2,4508.1,1.0934]
[1758024682036,8.82497926,4508.2,4508.1,1.0934]
[1758024682396,5.12097926,4508.2,4508.1,1.0934]
[1758024682657,8.82497926,4508.2,4508.1,1.0934]
[1758024685054,0.20801751,4508.2,4508.1,1.0934]
[1758024685344,0.1104,4508.2,4508.1,1.42466795]
[1758024686437,0.1104,4508.2,4508.1,1.0934]
[1758024687541,0.1104,4508.2,4508.1,3.3116294]
[1758024687744,0.1104,4508.2,4508.1,1.0934]
[1758024688529,0.1104,4508.2,4508.1,0.3054]
[1758024688840,0.1104,4508.2,4508.1,1.0949]
[1758024689012,0.1104,4508.2,4508.1,1.42632419]
[1758024689416,0.1104,4508.2,4508.1,1.0949]
[1758024691325,0.1096,4508.2,4508.1,1.0949]
[1758024697143,0.1096,4508.2,4508.1,3.3131294]
[1758024697478,0.1096,4508.2,4508.1,1.0949]
[1758024697839,0.1096,4508.2,4508.1,3.3131294]
[1758024698043,0.1096,4508.2,4508.1,1.0949]
[1758024698243,0.1096,4508.2,4508.1,1.20670828]
[1758024698678,0.1096,4508.2,4508.1,0.89260828]
[1758024702477,0.31729009,4508.2,4508.1,0.89260828]
[1758024702808,0.1096,4508.2,4508.1,0.41720828]
[1758024703008,0.31729009,4508.2,4508.1,0.41720828]
[1758024704506,0.31929009,4508.2,4508.1,0.41720828]
[1758024704666,0.1116,4508.2,4508.1,0.89260828]
[1758024704867,0.31931767,4508.2,4508.1,0.89260828]
[1758024706417,0.31931767,4508.2,4508.1,0.7808]
[1758024706615,0.1116,4508.2,4508.1,0.7808]
[1758024706773,0.31931767,4508.2,4508.1,0.7808]
[1758024708082,0.31931767,4508.2,4508.1,0.3054]
[1758024710414,0.52723916,4508.2,4508.1,0.3054]
[1758024710622,0.31952851,4508.2,4508.1,0.3054]
[1758024710777,0.52723916,4508.2,4508.1,0.3054]
[1758024710977,0.31952851,4508.2,4508.1,0.3054]
[1758024711288,0.52723916,4508.2,4508.1,0.3054]
[1758024711489,0.52752128,4508.2,4508.1,0.3054]
[1758024711886,0.52752128,4508.2,4508.1,0.7808]
[1758024712083,0.52752131,4508.2,4508.1,0.7808]
[1758024712330,0.52752131,4508.2,4508.1,0.326]
[1758024712481,0.52752131,4508.2,4508.1,0.8014]
[1758024712994,0.52752131,4508.2,4508.1,3.0196294]
[1758024713711,0.52752131,4508.2,4508.1,0.8014]
[1758024713889,0.52752131,4508.2,4508.1,0.326]
[1758024714323,0.65223287,4508.2,4508.1,0.326]
[1758024714619,0.52752131,4508.2,4508.1,0.326]
[1758024715107,1.13187721,4508.2,4508.1,0.326]
[1758024715314,0.52752131,4508.2,4508.1,0.7894]
[1758024715701,1.13187721,4508.2,4508.1,0.7894]
[1758024715889,0.52752131,4508.2,4508.1,0.7894]
[1758024716094,0.52752131,4508.2,4508.1,0.326]
[1758024716290,1.13187721,4508.2,4508.1,0.326]
[1758024716495,0.52752131,4508.2,4508.1,0.7894]
[1758024716701,0.52672131,4508.2,4508.1,0.7894]
[1758024717116,1.13107721,4508.2,4508.1,0.7894]
[1758024717433,0.5269743,4508.2,4508.1,0.0118]
[1758024717619,0.8314743,4508.2,4508.1,0.0118]
[1758024717817,1.3088743,4508.2,4508.1,0.0118]
[1758024718113,2.3454302,4508.2,4508.1,0.0118]
[1758024718326,1.86578586,4508.2,4508.1,0.0118]
[1758024718491,1.7410743,4508.2,4508.1,0.0118]
[1758024718691,2.3454302,4508.2,4508.1,0.0118]
[1758024719035,1.86578586,4508.2,4508.1,0.0118]
[1758024719217,1.74108116,4508.2,4508.1,0.0118]
[1758024719391,2.13764572,4508.2,4508.1,0.0118]
[1758024719592,1.86618974,4508.2,4508.1,0.0118]
[1758024719838,1.74127672,4508.2,4508.1,0.0118]
[1758024720329,2.3458574,4508.2,4508.1,0.0118]
[1758024720531,0.95658974,4508.2,4508.1,0.0118]
[1758024720834,0.83167672,4508.2,4508.1,0.0118]
[1758024720992,1.4362574,4508.2,4508.1,0.0118]
[1758024721191,0.83167672,4508.2,4508.1,0.0118]
[1758024721408,1.1317574,4508.2,4508.1,0.0118]
[1758024721608,0.52717672,4508.2,4508.1,0.0118]
[1758024721824,1.1317574,4508.2,4508.1,0.0118]
[1758024722033,0.52717672,4508.2,4508.1,0.0118]
[1758024722190,1.1317574,4508.2,4508.1,0.0118]
[1758024722391,0.52717672,4508.2,4508.1,0.0118]
[1758024722603,1.1317574,4508.2,4508.1,0.0118]
[1758024722792,0.52717672,4508.2,4508.1,0.0118]
[1758024723019,1.1317574,4508.2,4508.1,0.0118]
[1758024723224,0.52717672,4508.2,4508.1,0.0118]
[1758024723407,1.1317574,4508.2,4508.1,0.0118]
[1758024723737,0.82647672,4508.2,4508.1,0.0118]
[1758024724032,1.9000574,4508.2,4508.1,0.0118]
[1758024724236,1.86098974,4508.2,4508.1,0.0118]
[1758024724393,1.73607672,4508.2,4508.1,0.0118]
[1758024724592,2.3406574,4508.2,4508.1,0.0118]
[1758024724793,1.86098974,4508.2,4508.1,0.0118]
[1758024724993,1.73607672,4508.2,4508.1,0.0118]
[1758024725436,2.3406574,4508.2,4508.1,0.0118]
[1758024725607,0.95138974,4508.2,4508.1,0.0118]
[1758024725811,2.3406574,4508.2,4508.1,0.0118]
[1758024726606,1.4310574,4508.2,4508.1,0.0118]
[1758024727856,1.1317574,4508.2,4508.1,2.76244136]
[1758024728019,0.52717672,4508.2,4508.1,3.22434136]
[1758024728532,0.52717672,4508.2,4508.1,1.00611196]
[1758024728702,0.52717219,4508.2,4508.1,1.00611196]
[1758024728901,1.13174834,4508.2,4508.1,1.00611196]
[1758024729118,0.52716766,4508.2,4508.1,1.00611196]
[1758024729908,0.52716766,4508.2,4508.1,3.22434136]